bitfinex/quotes_ETHUSD_20251018
["timestamp","ask_amount","ask_price","bid_price","bid_amount"]
[1760809149638,0.001,3892.6,3892.5,13.90584881]
[1760809153081,0.1171,3892.6,3892.5,7.52584881]
[1760809153454,0.1171,3892.6,3892.5,2.56904303]
[1760809154081,0.001,3892.6,3892.5,4.32273346]
[1760809154304,0.001,3892.6,3892.5,8.10194303]
[1760809154974,0.001,3892.6,3892.5,5.39094303]
[1760809155678,0.001,3892.6,3892.5,4.29704303]
[1760809155856,0.001,3892.6,3892.5,5.76045172]
[1760809156357,0.001,3892.6,3892.5,6.22075172]
[1760809158061,0.001,3892.6,3892.5,6.34875172]
[1760809159398,0.001,3893.0,3892.9,6.70977903]
[1760809159799,0.1171,3893.0,3892.9,6.83777903]
[1760809160887,0.001,3893.0,3892.9,6.83777903]
[1760809161691,0.001,3893.0,3892.9,8.67684303]
[1760809163306,0.001,3893.0,3892.9,9.13714303]
[1760809163908,0.001,3893.0,3892.9,15.38914303]
[1760809164210,0.001,3893.0,3892.9,18.12014303]
[1760809165603,0.001,3893.0,3892.9,17.65984303]
[1760809165975,0.001,3893.0,3892.9,18.12014303]
[1760809168307,0.001,3893.4,3893.3,6.70851512]
[1760809168485,0.001,3893.4,3893.3,7.63622622]
[1760809168686,0.001,3893.4,3893.3,7.76422622]
[1760809172403,0.001,3893.4,3893.3,13.56174555]
[1760809172606,0.001,3893.4,3893.3,16.39957459]
[1760809172917,0.001,3893.4,3893.3,16.27274555]
[1760809173797,0.40291763,3893.9,3893.8,2.56818532]
[1760809174001,0.40291763,3893.9,3893.8,12.19123673]
[1760809174201,0.40291763,3893.9,3893.8,12.75385488]
[1760809174917,0.40291763,3893.9,3893.8,13.38745488]
[1760809175483,0.40291763,3893.9,3893.8,15.99045488]
[1760809175895,0.1165,3894.7,3894.6,2.56765778]
[1760809176102,0.1165,3894.7,3894.6,4.97865776]
[1760809176299,0.1165,3894.7,3894.6,5.10665776]
[1760809178985,0.1175,3894.7,3894.6,5.10665776]
[1760809180936,0.001,3894.7,3894.6,5.87409749]
[1760809182125,0.001,3894.7,3894.6,5.10665776]
[1760809189823,0.1173,3894.7,3894.6,5.10665776]
[1760809191532,0.1173,3894.7,3894.6,2.53899998]
[1760809192333,0.1173,3894.7,3894.6,2.41099998]
[1760809194740,0.1173,3894.7,3894.6,5.10665776]
[1760809194741,0.001,3894.7,3894.6,5.10665776]
[1760809195053,0.001,3894.7,3894.6,5.64038354]
[1760809195430,0.001,3894.7,3894.6,5.10665776]
[1760809197641,0.001,3894.7,3894.6,5.56515776]
[1760809197836,0.001,3894.7,3894.6,5.10665776]
[1760809201367,0.001,3894.7,3894.6,5.56515776]
[1760809201574,0.001,3894.7,3894.6,5.10665776]
[1760809202561,0.001,3894.7,3894.6,2.53899998]
[1760809203305,0.001,3894.7,3894.6,2.41099998]
[1760809203607,0.1173,3894.7,3894.6,2.41099998]
[1760809206795,0.1173,3894.7,3894.5,2.41099998]
[1760809206975,0.1163,3894.6,3894.5,2.41099998]
[1760809208392,0.1163,3894.6,3894.2,0.128]
[1760809208580,0.1163,3894.5,3894.0,2.41099998]
[1760809208894,0.1163,3894.5,3893.9,0.128]
[1760809208895,0.1163,3894.4,3893.3,2.56851514]
[1760809209084,4.70461933,3894.7,3893.4,2.56843007]
[1760809209085,0.1163,3894.3,3893.4,2.56843007]
[1760809209285,0.1163,3894.2,3893.4,2.56843007]
[1760809209485,0.1163,3894.2,3893.5,2.56837465]
[1760809209886,0.1163,3894.5,3893.6,2.56831437]
[1760809210205,0.1163,3894.5,3893.1,0.2264]
[1760809210206,0.1163,3894.5,3893.5,2.56837188]
[1760809210411,0.59839193,3894.5,3893.5,2.56837188]
[1760809210729,0.59839193,3894.5,3893.1,0.6841]
[1760809210730,0.1163,3894.4,3893.1,0.6841]
[1760809211021,0.1163,3894.3,3893.3,2.56847168]
[1760809211521,0.1163,3894.3,3893.2,2.56856634]
[1760809211706,0.1163,3894.3,3893.5,2.5683832]
[1760809211917,0.001,3894.7,3893.6,0.4577]
[1760809212106,0.001,3894.7,3894.2,0.2254]
[1760809212406,0.1173,3894.7,3893.7,0.2254]
[1760809212613,0.1173,3894.7,3893.9,2.56810942]
[1760809212794,0.1173,3894.7,3893.7,2.79365098]
[1760809212994,0.1173,3894.7,3893.8,3.02588532]
[1760809213312,0.001,3894.7,3894.2,2.56787955]
[1760809213819,0.001,3894.7,3893.9,0.4577]
[1760809214486,0.001,3894.7,3893.9,3.02581082]
[1760809214988,0.001,3894.7,3893.9,0.4577]
[1760809215713,0.001,3894.7,3894.0,2.41099998]
[1760809216383,0.001,3894.7,3894.1,3.02568746]
[1760809216800,0.001,3894.7,3894.2,0.4577]
[1760809217427,0.001,3894.7,3894.3,3.02554738]
[1760809217917,0.001,3894.7,3894.4,0.4577]
[1760809218433,0.001,3894.7,3894.5,0.4577]
[1760809220833,0.001,3894.7,3894.3,2.56781198]
[1760809221006,0.001,3894.7,3894.4,0.4577]
[1760809221703,0.001,3894.7,3894.2,2.6958982]
[1760809221903,0.001,3894.7,3894.3,0.4577]
[1760809222304,0.001,3894.7,3894.2,2.6958982]
[1760809222518,0.001,3894.7,3894.3,0.4577]
[1760809222898,0.001,3894.7,3894.4,0.4577]
[1760809224635,0.001,3894.7,3894.5,0.4577]
[1760809228228,0.001,3894.7,3894.3,2.56782065]
[1760809228429,0.001,3894.7,3894.3,3.02552065]
[1760809228640,0.001,3894.7,3894.4,0.4577]
[1760809229029,0.001,3894.7,3894.5,0.4577]
[1760809230917,0.001,3894.7,3894.3,0.4577]
[1760809231514,0.001,3894.7,3894.2,0.128]
[1760809231720,0.001,3894.7,3894.4,0.4577]
[1760809232220,0.001,3894.7,3893.9,0.002]
[1760809232421,2.94178105,3894.7,3893.9,0.002]
[1760809232652,0.128,3894.2,3893.9,0.002]
[1760809233591,0.2443,3894.2,3893.9,0.002]
[1760809234374,0.128,3894.0,3893.9,0.002]
[1760809234962,0.69832027,3894.0,3893.9,0.002]
[1760809235132,3.26637368,3894.0,3893.9,0.002]
[1760809235333,0.69832027,3894.0,3893.9,0.002]
[1760809235744,0.58202027,3894.0,3893.9,0.002]
[1760809236259,0.69832027,3894.0,3893.9,0.002]
[1760809236866,3.26637368,3894.0,3893.9,0.002]
[1760809237063,16.07715568,3894.0,3893.9,0.002]
[1760809237268,13.79637468,3894.0,3893.9,0.002]
[1760809237570,23.35249768,3894.0,3893.9,0.002]
[1760809237737,23.67020132,3894.0,3893.9,0.002]
[1760809238160,23.77321007,3894.0,3893.9,0.002]
[1760809238536,24.05645107,3894.0,3893.9,0.002]
[1760809239563,26.97477607,3894.0,3893.9,0.002]
[1760809239773,26.97477607,3894.0,3893.1,0.002]
[1760809239774,2.56858111,3893.2,3893.1,0.002]
[1760809240076,9.99854296,3893.2,3893.1,0.002]
[1760809240273,10.11484296,3893.2,3893.1,0.002]
[1760809240933,10.21787188,3893.2,3893.1,0.002]
[1760809241871,10.34848727,3893.2,3893.1,0.002]
[1760809243040,16.31338627,3893.2,3893.1,0.002]
[1760809243347,10.34848727,3893.2,3893.1,0.002]
[1760809243667,26.79097527,3893.2,3893.1,0.002]
[1760809243857,25.39112227,3893.2,3893.1,0.002]
[1760809244519,30.25647227,3893.2,3893.1,0.002]
[1760809244777,15.15827627,3893.2,3893.1,0.002]
[1760809244972,14.26005227,3893.2,3893.1,0.002]
[1760809245572,20.06243027,3893.2,3893.1,0.002]
[1760809245785,18.92059527,3893.2,3893.1,0.002]
[1760809246562,28.13707627,3893.2,3893.1,0.002]
[1760809246868,27.92109527,3893.2,3893.1,0.002]
[1760809247442,10.34848727,3893.2,3893.1,0.002]
[1760809247642,26.49471027,3893.2,3893.1,0.002]
[1760809248600,26.01209427,3893.2,3893.1,0.002]
[1760809249309,25.84949391,3893.2,3893.1,0.002]
[1760809249533,31.03120405,3892.9,3892.8,0.002]
[1760809249680,32.79548869,3892.9,3892.8,0.002]
[1760809249990,32.91178869,3892.9,3892.8,0.002]
[1760809250170,32.78507327,3892.9,3892.8,0.002]
[1760809250571,32.78507327,3892.9,3892.6,0.002]
[1760809250572,23.25615003,3892.7,3892.6,0.002]
[1760809250792,22.67247288,3892.7,3892.6,0.002]
[1760809250970,22.41556488,3892.7,3892.6,0.002]
[1760809251174,22.51861875,3892.7,3892.6,0.002]
[1760809251376,21.44100975,3892.7,3892.6,0.002]
[1760809251572,23.00164775,3892.7,3892.6,0.002]
[1760809252569,23.72461675,3892.7,3892.6,0.002]
[1760809252879,20.49522375,3892.7,3892.6,0.002]
[1760809253480,20.37892375,3892.7,3892.6,0.002]
[1760809253690,21.25724375,3892.7,3892.6,0.002]
[1760809253884,21.37354375,3892.7,3892.6,0.002]
[1760809254297,21.37354375,3892.7,3892.3,0.002]
[1760809254298,3.20270903,3892.4,3892.3,0.002]
[1760809254497,25.95593203,3892.4,3892.3,0.002]
[1760809254699,5.05877503,3892.3,3892.2,0.002]
[1760809254902,30.33389336,3892.3,3892.2,0.002]
[1760809255495,21.44796836,3892.3,3892.2,0.002]
[1760809255831,24.14112288,3892.3,3892.2,0.002]
[1760809256001,24.25742288,3892.3,3892.2,0.002]
[1760809256595,10.24343688,3892.3,3892.2,0.002]
[1760809256900,24.10486888,3892.3,3892.2,0.002]
[1760809257502,23.98856888,3892.3,3892.2,0.002]
[1760809257698,23.66529288,3892.3,3892.2,0.002]
[1760809258802,24.46974888,3892.3,3892.2,0.002]
[1760809259192,24.46974888,3892.3,3891.8,0.002]
[1760809259193,23.83614888,3892.3,3891.8,0.002]
[1760809259394,4.97409149,3891.5,3891.4,0.002]
[1760809259595,9.67771082,3891.5,3891.4,0.002]
[1760809259991,9.67771082,3891.5,3891.4,0.4436]
[1760809260192,7.10800763,3891.5,3891.4,0.4436]
[1760809260392,7.47275015,3891.5,3891.4,0.4436]
[1760809264978,1.728,3891.5,3891.4,0.4436]
[1760809265182,1.856,3891.5,3891.4,0.4436]
[1760809266382,2.4896,3891.5,3891.4,0.002]
[1760809266586,5.05930319,3891.5,3891.4,0.002]
[1760809268216,2.4896,3891.5,3891.4,0.454]
[1760809292840,0.7616,3891.5,3891.4,0.454]
[1760809293847,0.7616,3891.5,3891.4,0.002]
[1760809299851,3.33130319,3891.5,3891.4,0.002]
[1760809300041,3.44760319,3891.5,3891.4,0.002]
[1760809300451,18.74103419,3891.5,3891.4,0.002]
[1760809301857,32.45225919,3891.5,3891.4,0.002]
[1760809302426,34.18025919,3891.5,3891.4,0.002]
[1760809302956,35.17560319,3891.5,3891.4,0.002]
[1760809303329,35.27868733,3891.5,3891.4,0.002]
[1760809303724,10.23787633,3891.5,3891.4,0.002]
[1760809303930,14.35314152,3891.5,3891.4,0.002]
[1760809304362,0.6336,3891.2,3891.0,0.4115117]
[1760809304545,4.70361933,3891.1,3891.0,0.4115117]
[1760809304749,4.83161933,3891.1,3891.0,0.4115117]
[1760809304952,4.87642234,3891.1,3891.0,0.4115117]
[1760809305151,4.87642234,3891.1,3889.8,2.5728173]
[1760809305341,4.87642234,3891.1,3885.0,4.70361933]
[1760809305342,0.4031,3888.3,3885.0,4.70361933]
[1760809305548,0.6336,3887.4,3887.3,0.2321]
[1760809305751,2.3616,3887.4,3887.3,0.2321]
[1760809306040,0.4031,3888.3,3887.3,0.2321]
[1760809306258,0.6336,3887.5,3887.4,0.4483]
[1760809306566,0.6336,3887.7,3887.4,0.4483]
[1760809306781,0.4483,3887.8,3887.3,0.2321]
[1760809306935,0.4483,3887.8,3887.5,0.4483]
[1760809307126,1.728,3888.5,3887.5,0.4483]
[1760809307329,1.728,3888.6,3888.2,0.2321]
[1760809307530,1.728,3888.6,3888.2,0.6804]
[1760809307761,2.1311,3888.3,3888.2,0.6804]
[1760809308062,0.4031,3888.3,3888.2,0.6804]
[1760809310255,0.44792947,3888.3,3888.2,0.6804]
[1760809311144,1.77282947,3888.3,3888.2,0.6804]
[1760809312865,1.728,3888.0,3887.3,0.2321]
[1760809313164,1.728,3888.0,3887.7,0.4483]
[1760809313349,1.728,3888.0,3887.8,0.4483]
[1760809313535,0.04483307,3887.9,3887.3,0.2321]
[1760809313736,0.04483307,3887.9,3887.4,0.4483]
[1760809314762,4.70361933,3887.7,3887.5,0.4483]
[1760809314967,4.70361933,3887.7,3887.3,0.2321]
[1760809315161,4.70361933,3887.7,3887.6,0.4483]
[1760809316064,4.70361933,3887.7,3887.3,0.2321]
[1760809316065,1.856,3887.6,3887.3,0.2321]
[1760809316241,1.728,3887.6,3887.3,0.6804]
[1760809316440,4.30028157,3887.6,3887.4,0.4483]
[1760809316680,4.30034726,3887.5,3887.4,0.4483]
[1760809316879,0.128,3887.4,3887.3,0.2321]
[1760809317175,0.128,3887.4,3887.3,0.6804]
[1760809319171,0.1728372,3887.4,3887.3,0.6804]
[1760809321869,0.0448372,3887.4,3887.3,0.6804]
[1760809322188,0.0448372,3887.4,3887.3,4.5504]
[1760809322683,0.0448372,3887.4,3887.3,4.51009]
[1760809323052,0.0448372,3887.4,3887.3,3.87]
[1760809323764,0.0448372,3887.4,3887.3,4.3183]
[1760809324700,0.0448372,3887.4,3887.3,3.87]
[1760809325004,0.0448372,3887.4,3887.3,4.3417]
[1760809326170,0.0448372,3887.4,3887.3,3.87]
[1760809326573,6.47645653,3887.4,3887.3,3.87]
[1760809326898,6.47645653,3887.4,3887.2,0.002]
[1760809327517,1.728,3887.3,3887.2,0.002]
[1760809327694,4.39947961,3887.3,3887.2,0.002]
[1760809328000,5.03307961,3887.3,3887.2,0.002]
[1760809329422,0.6336,3886.9,3886.8,0.002]
[1760809330007,7.06521933,3886.9,3886.8,0.002]
[1760809330179,12.97318967,3886.9,3886.8,0.002]
[1760809331208,15.7580718,3886.9,3886.8,0.002]
[1760809331509,14.4755718,3886.9,3886.8,0.002]
[1760809331885,11.90282746,3886.9,3886.8,0.002]
[1760809332224,2.40645013,3886.9,3886.8,0.002]
[1760809332516,2.40645013,3886.9,3886.5,0.398521]
[1760809332718,2.40645013,3886.9,3886.4,0.233]
[1760809334617,7.11006946,3886.9,3886.4,0.233]
[1760809335194,0.04485013,3886.9,3886.5,0.4328]
[1760809335415,0.04485013,3886.9,3886.6,0.4328]
[1760809335718,0.04485013,3886.9,3886.7,0.4328]
[1760809335924,0.6336,3887.6,3886.8,0.4328]
[1760809336218,0.6336,3887.4,3886.8,0.4328]
[1760809336407,4.70361933,3887.8,3886.8,0.4328]
[1760809336606,1.728,3887.7,3886.8,0.4328]
[1760809337611,0.001,3887.4,3886.8,0.4328]
[1760809338516,1.728,3887.3,3886.5,4.3028]
[1760809338910,0.04484225,3887.2,3886.6,0.4328]
[1760809339319,0.128,3886.9,3886.6,0.4328]
[1760809339728,0.04484225,3887.2,3886.6,0.4328]
[1760809339931,0.17284225,3887.2,3887.1,0.233]
[1760809340229,0.17284225,3887.2,3887.1,0.6658]
[1760809342601,0.17284225,3887.2,3887.1,0.6331489]
[1760809347105,0.128,3887.2,3887.1,0.6331489]
[1760809348629,0.001,3887.4,3887.1,0.6331489]
[1760809348832,0.001,3887.4,3887.2,0.4328]
[1760809349238,0.001,3887.4,3887.3,0.4328]
[1760809350242,0.04583788,3887.4,3887.3,0.4328]
[1760809351968,0.04583788,3887.4,3887.3,3.32585561]
[1760809352168,0.04583788,3887.4,3887.3,3.45385561]
[1760809352313,0.001,3887.4,3887.3,3.45385561]
[1760809352511,0.001,3887.4,3887.3,3.15999571]
[1760809353839,0.001,3887.4,3887.3,7.0557205]
[1760809354028,0.001,3887.4,3887.3,7.02999571]
[1760809355837,0.001,3887.4,3887.3,11.73361504]
[1760809357849,0.001,3887.4,3887.3,13.46161504]
[1760809358760,0.001,3887.4,3887.3,14.09521504]
[1760809360351,0.001,3887.8,3887.5,2.57234726]
[1760809360519,0.001,3887.8,3887.7,2.57221493]
[1760809360844,0.001,3887.8,3887.7,2.70021493]
[1760809361011,0.001,3887.8,3887.7,7.40383426]
[1760809361316,0.001,3887.8,3887.7,7.84543426]
[1760809361546,0.001,3887.8,3887.7,11.71443426]
[1760809361754,0.001,3887.8,3887.7,14.20947804]
[1760809362646,0.001,3887.8,3887.7,9.06425871]
[1760809363241,0.001,3887.8,3887.7,6.56921493]
[1760809363951,0.4519,3887.8,3887.7,6.56921493]
[1760809364772,0.001,3887.8,3887.7,6.56921493]
[1760809365118,0.3561,3887.8,3887.7,6.56921493]
[1760809368159,0.001,3887.8,3887.7,6.56921493]
[1760809378949,0.001,3887.8,3887.7,7.01081493]
[1760809379461,0.001,3887.8,3887.7,6.56921493]
[1760809379662,0.001,3887.8,3887.7,7.52753115]
[1760809379863,0.001,3887.8,3887.7,4.10013115]
[1760809381360,0.001,3887.8,3887.7,3.65853115]
[1760809381978,0.001,3887.8,3887.7,4.10013115]
[1760809383168,0.001,3887.8,3887.7,4.12585329]
[1760809383489,0.001,3887.8,3887.7,4.10013115]
[1760809384588,0.001,3887.8,3887.7,4.12585329]
[1760809384764,0.001,3887.8,3887.7,4.10013115]
[1760809384964,0.001,3887.8,3887.7,7.96913115]
[1760809386279,0.001,3887.8,3887.7,5.82813115]
[1760809386810,0.001,3887.8,3887.7,9.69713115]
[1760809393325,0.001,3887.8,3887.7,9.25553115]
[1760809393531,0.001,3887.8,3887.7,11.86353115]
[1760809393727,0.001,3887.8,3887.7,8.29721493]
[1760809393913,0.3534,3887.8,3887.7,8.29721493]
[1760809395312,0.001,3887.8,3887.7,8.29721493]
[1760809396504,0.001,3888.2,3888.1,4.2999503]
[1760809396915,0.001,3888.2,3888.1,4.4279503]
[1760809397228,0.001,3888.2,3888.1,5.32583425]
[1760809397801,0.001,3888.2,3888.1,5.75773425]
[1760809398101,0.001,3888.2,3888.1,5.32583425]
[1760809399133,0.001,3888.2,3888.1,4.4279503]
[1760809401251,0.001,3888.2,3888.1,2.6999503]
[1760809402054,0.001,3888.2,3888.1,6.5689503]
[1760809405327,0.001,3888.2,3888.1,6.8760503]
[1760809412467,0.001,3888.2,3888.1,3.0070503]
[1760809416776,0.001,3888.2,3888.1,4.7350503]
[1760809422465,0.001,3888.2,3888.1,3.0070503]
[1760809429197,0.001,3888.2,3888.1,3.57321782]
[1760809429400,0.001,3888.2,3888.1,4.08489832]
[1760809429590,0.001,3888.2,3888.1,4.21289832]
[1760809429913,0.001,3888.2,3888.1,5.96661782]
[1760809430101,0.001,3888.2,3888.1,5.94089832]
[1760809434532,0.001,3888.2,3888.1,9.80989832]
[1760809441612,0.001,3888.6,3888.5,2.57168574]
[1760809441827,0.001,3888.6,3888.5,13.71379049]
[1760809442013,0.001,3888.6,3888.5,14.13947364]
[1760809442338,0.001,3888.6,3888.5,14.24256389]
[1760809449271,0.001,3888.9,3888.8,8.16648734]
[1760809449671,0.001,3888.9,3888.8,8.63718734]
[1760809449837,0.001,3888.9,3888.8,10.94810177]
[1760809450165,0.001,3888.9,3888.8,11.05118485]
[1760809451673,0.001,3888.9,3888.8,10.70848485]
[1760809453152,0.1824,3888.9,3888.8,10.70848485]
[1760809453481,0.1824,3888.9,3888.8,8.39757042]
[1760809461305,0.0828,3888.9,3888.8,8.39757042]
[1760809461800,0.001,3888.9,3888.8,8.39757042]
[1760809463224,0.001,3888.9,3888.8,4.53057042]
[1760809469840,0.001,3888.9,3888.8,5.00127042]
[1760809470042,0.001,3888.9,3888.8,6.22693122]
[1760809473334,0.001,3888.9,3888.8,4.53057042]
[1760809473646,0.1824,3888.9,3888.8,0.10308308]
[1760809473860,0.1824,3888.9,3888.1,0.002]
[1760809474247,0.1824,3888.9,3888.2,0.1824]
[1760809474447,0.0992,3888.8,3888.2,0.1824]
[1760809474760,0.0992,3888.8,3888.3,2.57180953]
[1760809475065,0.0992,3888.7,3888.3,2.57180953]
[1760809475272,0.0992,3888.6,3888.3,2.57180953]
[1760809475564,0.0992,3888.5,3888.3,2.57180953]
[1760809475758,0.0992,3888.4,3888.3,2.57180953]
[1760809476368,0.0992,3888.4,3888.2,2.75426771]
[1760809476671,0.0992,3888.4,3888.3,2.57181801]
[1760809476964,0.0992,3888.8,3888.4,2.57172473]
[1760809477152,0.0832,3888.9,3888.6,0.002]
[1760809477153,0.0992,3888.7,3888.6,0.002]
[1760809477544,0.0832,3888.9,3888.7,2.5715022]
[1760809477738,0.0992,3888.8,3888.6,0.002]
[1760809477944,0.0992,3888.8,3888.6,2.57360849]
[1760809478157,0.0992,3888.7,3888.6,2.57360849]
[1760809478761,0.22721911,3888.9,3888.6,2.57360849]
[1760809478962,0.12801911,3888.9,3888.6,2.57360849]
[1760809479171,0.22721911,3888.9,3888.6,2.57360849]
[1760809480254,0.22721911,3888.9,3888.7,2.57155199]
[1760809481446,0.22721911,3888.9,3888.6,2.57360801]
[1760809481959,0.22721911,3888.9,3888.7,2.57154014]
[1760809482169,0.22721911,3888.9,3888.6,0.002]
[1760809482170,0.22721911,3888.9,3888.6,2.57360571]
[1760809483369,0.12801911,3888.9,3888.6,2.57360571]
[1760809483575,0.0992,3888.8,3888.6,0.002]
[1760809484033,0.25601911,3888.9,3888.6,0.002]
[1760809484434,0.25601911,3888.9,3888.6,2.57361337]
[1760809484634,0.35521911,3888.9,3888.6,2.57361337]
[1760809485474,0.35521911,3888.9,3888.6,0.002]
[1760809485633,0.25601911,3888.9,3888.6,0.002]
[1760809487270,0.35521911,3888.9,3888.6,0.002]
[1760809488639,0.25601911,3888.9,3888.6,0.002]
[1760809488850,0.0992,3888.8,3888.6,0.002]
[1760809489679,0.0992,3888.7,3888.6,0.002]
[1760809491257,0.7328,3888.7,3888.6,0.002]
[1760809491983,0.7776277,3888.7,3888.6,0.002]
[1760809498798,0.6784277,3888.7,3888.6,0.002]
[1760809499105,0.97709685,3888.7,3888.6,0.002]
[1760809499869,1.07629685,3888.7,3888.6,0.002]
[1760809500911,1.47968841,3888.7,3888.6,0.002]
[1760809501410,0.74688841,3888.7,3888.6,0.002]
[1760809501702,0.44821926,3888.7,3888.6,0.4447]
[1760809501889,0.44821926,3888.7,3888.6,0.002]
[1760809503269,0.0448277,3888.7,3888.6,0.002]
[1760809504815,0.0448277,3888.7,3888.6,0.4695]
[1760809505311,0.128,3888.8,3888.6,0.4695]
[1760809505512,0.128,3888.8,3888.7,0.4675]
[1760809507813,0.128,3888.8,3888.6,0.002]
[1760809508626,0.128,3888.8,3888.6,0.4304]
[1760809509212,0.128,3888.8,3888.6,0.002]
[1760809509688,0.1814,3888.7,3888.6,0.002]
[1760809509888,0.83756193,3888.7,3888.6,0.002]
[1760809511098,5.7707154,3888.7,3888.6,0.002]
[1760809511910,3.19916193,3888.7,3888.6,0.002]
[1760809512307,5.7707154,3888.7,3888.6,0.002]
[1760809512607,3.19916193,3888.7,3888.6,0.002]
[1760809514022,5.7707154,3888.7,3888.6,0.002]
[1760809514522,3.19916193,3888.7,3888.6,0.002]
[1760809515331,3.10016193,3888.7,3888.6,0.002]
[1760809515706,3.19916193,3888.7,3888.6,0.002]
[1760809516928,3.10016193,3888.7,3888.6,0.002]
[1760809519122,6.07511666,3888.7,3888.6,0.002]
[1760809519449,6.17411666,3888.7,3888.6,0.002]
[1760809519840,3.60256319,3888.7,3888.6,0.002]
[1760809521019,3.50356319,3888.7,3888.6,0.002]
[1760809521219,3.42116319,3888.7,3888.6,0.002]
[1760809523354,3.01776193,3888.7,3888.6,0.002]
[1760809528987,2.38416193,3888.7,3888.6,0.4304]
[1760809529155,1.728,3888.7,3888.6,0.4304]
[1760809529882,1.729,3888.7,3888.6,0.002]
[1760809530385,2.3626,3888.7,3888.6,0.002]
[1760809531290,4.93415347,3888.7,3888.6,0.002]
[1760809531489,8.45807847,3888.7,3888.6,0.002]
[1760809531656,8.55707847,3888.7,3888.6,0.002]
[1760809532572,13.56270147,3888.7,3888.6,0.002]
[1760809532968,12.22070147,3888.7,3888.6,0.002]
[1760809533163,10.95256147,3888.7,3888.6,0.002]
[1760809533363,9.24759247,3888.7,3888.6,0.002]
[1760809533572,9.27102447,3888.7,3888.6,0.002]
[1760809533761,9.17202447,3888.7,3888.6,0.002]
[1760809533972,9.27102447,3888.7,3888.6,0.002]
[1760809534600,9.07767047,3888.7,3888.6,0.002]
[1760809534899,8.97867047,3888.7,3888.6,0.002]
[1760809535499,8.99858247,3888.7,3888.6,0.002]
[1760809535683,7.49324747,3888.7,3888.6,0.002]
[1760809536086,1.729,3888.7,3888.6,0.4341]
[1760809541499,1.729,3888.7,3888.6,0.002]
[1760809542305,4.93415347,3888.7,3888.6,0.002]
[1760809542603,2.3626,3888.7,3888.6,0.002]
[1760809542903,5.03315347,3888.7,3888.6,0.002]
[1760809543101,4.93415347,3888.7,3888.6,0.002]
[1760809543481,2.3626,3888.7,3888.6,0.002]
[1760809543687,5.03315347,3888.7,3888.6,0.002]
[1760809543898,16.57618547,3888.7,3888.6,0.002]
[1760809544877,17.69469447,3888.7,3888.6,0.002]
[1760809545809,19.20691847,3888.7,3888.6,0.002]
[1760809546379,10.36251247,3888.7,3888.6,0.002]
[1760809546578,8.63917147,3888.7,3888.6,0.002]
[1760809546778,9.68137647,3888.7,3888.6,0.002]
[1760809547009,10.08480329,3888.7,3888.6,0.002]
[1760809547815,7.62832329,3888.7,3888.6,0.002]
[1760809548308,7.72732329,3888.7,3888.6,0.002]
[1760809548809,9.85386829,3888.7,3888.6,0.002]
[1760809549025,8.54509329,3888.7,3888.6,0.002]
[1760809549832,11.00148029,3888.7,3888.6,0.002]
[1760809550824,9.80548029,3888.7,3888.6,0.002]
[1760809550985,7.94004229,3888.7,3888.6,0.002]
[1760809551821,5.33758029,3888.7,3888.6,0.002]
[1760809552025,9.39347729,3888.7,3888.6,0.002]
[1760809552323,8.66884729,3888.7,3888.6,0.002]
[1760809553020,11.55414529,3888.7,3888.6,0.002]
[1760809553804,7.81986529,3888.7,3888.6,0.002]
[1760809554005,10.30584129,3888.7,3888.6,0.002]
[1760809554894,5.43658029,3888.7,3888.6,0.002]
[1760809555089,11.33323729,3888.7,3888.6,0.002]
[1760809555493,9.93417829,3888.7,3888.6,0.002]
[1760809555693,10.03317829,3888.7,3888.6,0.002]
[1760809556011,11.01274829,3888.7,3888.6,0.002]
[1760809556438,8.06295129,3888.7,3888.6,0.002]
[1760809556933,5.33758029,3888.7,3888.6,0.002]
[1760809557124,9.16628029,3888.7,3888.6,0.002]
[1760809558139,9.42172129,3888.7,3888.6,0.002]
[1760809558338,2.76602682,3888.7,3888.6,0.002]
[1760809558548,0.001,3888.7,3888.6,0.4341]
[1760809560829,0.001,3888.7,3888.6,0.002]
[1760809561052,0.001,3888.7,3888.6,0.4341]
[1760809561562,0.44921442,3888.7,3888.6,0.4341]
[1760809563065,1.08281442,3888.7,3888.6,0.4341]
[1760809563373,8.11631939,3888.7,3888.6,0.002]
[1760809563528,15.48845586,3888.7,3888.6,0.002]
[1760809564076,12.91690239,3888.7,3888.6,0.002]
[1760809564577,11.02327839,3888.7,3888.6,0.002]
[1760809564757,10.32903639,3888.7,3888.6,0.002]
[1760809564958,12.90058986,3888.7,3888.6,0.002]
[1760809566168,12.85576112,3888.7,3888.6,0.002]
[1760809566664,20.96856012,3888.7,3888.6,0.002]
[1760809566857,20.63936012,3888.7,3888.6,0.002]
[1760809567693,29.11769912,3888.7,3888.6,0.002]
[1760809568572,32.04810012,3888.7,3888.6,0.002]
[1760809569774,31.49686612,3888.7,3888.6,0.002]
[1760809569955,27.89686612,3888.7,3888.6,0.002]
[1760809570884,30.02546212,3888.7,3888.6,0.002]
[1760809571179,29.34109969,3888.7,3888.6,0.002]
[1760809571389,15.10133379,3888.0,3887.9,1.223162]
[1760809571597,15.57505831,3888.0,3887.9,1.223162]
[1760809571798,17.90909631,3888.0,3887.9,1.223162]
[1760809572704,15.82409631,3888.0,3887.9,1.223162]
[1760809572869,16.01709631,3888.0,3887.9,1.223162]
[1760809573200,16.4654179,3888.0,3887.9,1.223162]
[1760809573903,16.9037489,3888.0,3887.9,1.223162]
[1760809574567,16.50026673,3888.0,3887.9,1.223162]